Cogmind - Beta 14 @@@ ROGUE MODE // 2024.09.30 @ 14:52:29 Player: Cmdr.Laserstrahl Result: Destroyed by H-71 Marshal with Heavy Mass Driver Performance ------------- Evolutions (5) 2500 Regions Visited (6) 1200 Robots Destroyed (138) 690 Value Destroyed (3657) 3657 Prototype IDs (5) 100 Alien Tech Used (0) 0 Bonus (218) 218 TOTAL SCORE: 8365 Bonus ------- High Alert Combat Kills 215 Follower Combat Kills 81 Friendly Fire -78 Cogmind --------- Core Integrity 0/1000 Matter 252/300 Energy 99/100 System Corruption 9% Temperature Cool (0) Movement Core (100) Ox1 Location -5/Factory Parts ------- > --- POWER (2) -------- (None) > --- PROPULSION (4) --- (None) > --- UTILITY (8) ------ Machine Analyzer Improved Signal Interpreter Terrain Scanner Improved Targeting Computer Hacking Suite Hacking Suite > --- WEAPON (3) ------- Heavy Flail > --- INVENTORY (5) ---- Energy Well (350) Compact Matter Pod (150) Target Analyzer Matter Filter Phase Cannon Peak State ------------ > --- POWER ------------ Light Angular Momentum Engine Light Angular Momentum Engine > --- PROPULSION ------- Armored Wheel Armored Wheel Armored Wheel Armored Wheel > --- UTILITY ---------- Advanced Cooling System Large Storage Unit Machine Analyzer Improved Sensor Array Improved Signal Interpreter Improved Weapon Shielding Improved Hardlight Generator Hacking Suite > --- WEAPON ----------- Phase Cannon Coil Gun Assault Cannon > --- INVENTORY -------- Flexi-carbon Leg Armored Wheel Advanced Cooling System Energy Well Compact Matter Pod Improved Targeting Computer Target Analyzer Matter Filter Hacking Suite Phase Cannon KE Penetrator Rocket Launcher Rocket Launcher Mini Grenade Launcher Heavy Flail [Rating: 63] Favorites ----------- Power Improved Deuterium Engine Engine Improved Deuterium Engine Power Core Light Nuclear Core Propulsion Armored Wheel Leg Carbon-fiber Leg Wheel Armored Wheel Utility Large Storage Unit Device Cooling System Storage Large Storage Unit Processor Machine Analyzer Hackware Hacking Suite Protection Light Armor Plating Weapon Improved Light Cannon Energy Gun EM Pulse Gun Energy Cannon Particle Cannon Ballistic Gun Minigun Ballistic Cannon Improved Light Cannon Launcher Rocket Launcher Impact Weapon Heavy Flail Slashing Weapon Segregator Build | -11 -10 -9 -8 -7 -6 -5 ------- Run | Yrd Mat Mat Mat Fac Fac Fac Slots Evolved 10 | . . 2 2 2 2 2 Power 1 | . . . . . 1 . Propulsion 2 | . . 1 . 1 . . Utility 6 | . . 1 2 1 1 1 Weapon 1 | . . . . . . 1 Parts Attached 112 | 7 14 17 9 22 17 26 Power 18 | 1 2 5 2 2 2 4 Engine 16 | 1 2 4 2 2 2 3 Core 2 | . . 1 . . . 1 Reactor . | . . . . . . . Propulsion 35 | 2 4 4 2 10 9 4 Treads . | . . . . . . . Leg 6 | . . . . . 5 1 Wheel 29 | 2 4 4 2 10 4 3 Hover . | . . . . . . . Flight . | . . . . . . . Utility 30 | 2 3 4 4 5 4 8 Device 14 | 1 1 2 1 1 3 5 Storage 2 | 1 1 . . . . . Processor 3 | . . . . 1 1 1 Hackware 2 | . . . 1 . . 1 Protection 9 | . 1 2 2 3 . 1 Artifact . | . . . . . . . Weapon 29 | 2 5 4 1 5 2 10 Energy Gun 2 | 1 . 1 . . . . Energy Cannon 7 | . . 2 1 2 1 1 Ballistic Gun 6 | 1 1 . . 2 1 1 Ballistic Cannon 7 | . 4 1 . . . 2 Launcher 3 | . . . . . . 3 Special Weapon . | . . . . . . . Impact Weapon 2 | . . . . 1 . 1 Slashing Weapon 2 | . . . . . . 2 Piercing Weapon . | . . . . . . . Special Melee Weapon . | . . . . . . . Unidentified Prototypes 3 | . . 1 1 . . 1 Parts Lost 42 | . 2 4 . 11 . 25 Power 6 | . . 2 . 2 . 2 Propulsion 13 | . 1 1 . 4 . 7 Utility 11 | . . 1 . 3 . 7 Weapon 12 | . 1 . . 2 . 9 Highest Loss Streak 22 | . 1 1 . 5 . 22 To Critical Strikes . | . . . . . . . Average Slot Usage (%) 93 | . 96 97 99 95 99 81 Engine 8 | . 13 8 9 6 12 7 Leg 1 | . . . . . 11 . Wheel 24 | . 26 32 27 26 14 16 Device 12 | . 9 10 18 14 9 12 Storage 7 | . 14 11 9 7 6 4 Processor 6 | . . . . 6 13 12 Hackware 4 | . . . 8 7 6 6 Protection 7 | . 3 10 9 6 10 3 Energy Cannon 6 | . . 9 8 7 6 3 Ballistic Gun 4 | . 11 . . 6 6 3 Ballistic Cannon 5 | . 10 12 9 . . 3 Peak Build Rating 63 | 7 11 17 23 36 57 63 Average Rating 30 | 4 7 15 21 29 51 49 On Entrance 20 | . 7 11 16 22 36 53 Naked Turns . | . . . . . . . Heaviest Build 70 | 13 34 40 43 55 66 70 Greatest Support 70 | 26 26 42 38 56 70 48 Greatest Overweight (x) 5 | . 2 1 1 5 4 2 Average Overweight (x) . | . . . 1 . . 1 Largest Inventory Capacity 15 | 8 15 15 15 15 15 15 Average Capacity 14 | 7 14 15 15 15 15 13 Most Carried 15 | 6 15 15 15 15 15 15 Average Carried 13 | 2 11 14 14 14 14 12 Final Capacity 15 | 8 15 15 15 15 15 5 Final Carried 15 | 6 15 15 15 14 15 5 Class Distribution -------------------- 34% | Mutant 33% | Scavenger-Mutant 26% | Scavenger-Skirmisher 3% | Hacker-Mutant Dominant Class ---------------- Mutant | -10/Materials Mutant | -9/Materials Scavenger-Mutant | -8/Materials Scavenger-Mutant | -7/Factory Scavenger-Skirmisher | -6/Factory Scavenger-Skirmisher | -5/Factory Resources | -11 -10 -9 -8 -7 -6 -5 ----------- Run | Yrd Mat Mat Mat Fac Fac Fac Matter Collected 2900 | 294 221 655 200 479 156 895 Remotely . | . . . . . . . Salvage Created 5196 | 128 220 1140 461 1351 651 1245 Parts 278 | 7 23 84 20 54 31 59 Haulers Intercepted 5 | . . 2 1 1 . 1 Recyclers Shooed 9 | . . 1 1 3 2 2 Parts Field Recycled . | . . . . . . . Retrieved Matter . | . . . . . . . Parts Self-Destructed . | . . . . . . . Prevented . | . . . . . . . Kills | -11 -10 -9 -8 -7 -6 -5 ------- Run | Yrd Mat Mat Mat Fac Fac Fac Combat Hostiles Destroyed 80 | . 6 29 6 14 4 21 Guns 14 | . 3 . . 6 1 4 Cannons 54 | . 3 29 6 8 3 5 AOE 12 | . . . . . . 12 Classes Destroyed 17 | 2 7 3 . 2 . 3 Worker 7 | . 1 1 . 2 1 2 Builder 10 | . 1 . . 2 . 7 Tunneler 3 | 2 . . . 1 . . Hauler 5 | . . 2 1 1 . 1 Recycler 19 | 1 . 4 3 6 3 2 Mechanic 5 | . 1 . 1 1 . 2 Operator 3 | . 1 . 1 . . 1 Watcher 6 | . 1 3 . 1 . 1 Swarmer 26 | . 3 14 3 2 . 4 Saboteur 1 | . . . . . . 1 Grunt 30 | . 3 10 2 6 4 5 Brawler 1 | . . 1 . . . . Protector 1 | . . . . . . 1 Sentry 9 | . . 4 1 3 . 1 Specialist 2 | . . . . . . 2 Hunter 3 | . . . . 1 . 2 Programmer 7 | . . . . 2 . 5 Best Kill Streak 8 | 3 8 7 7 6 3 8 Combat Bots Only 7 | . 4 6 4 4 1 7 Max Kills in Single Turn 5 | 1 1 1 1 1 2 5 Gunslinging . | . . . . . . . Exploded 5 | . . . . . . 5 Melee . | . . . . . . . Uniques/NPCs Destroyed . | . . . . . . . Combat | -11 -10 -9 -8 -7 -6 -5 -------- Run | Yrd Mat Mat Mat Fac Fac Fac Hostile Shots Fired 781 | . 37 107 22 210 62 343 Missed 275 | . 8 31 8 79 25 124 Damage Taken 6834 | . 320 733 160 1541 661 3419 Core 1479 | . 52 94 8 243 39 1043 Absorbed by Shields 492 | . . . . . 66 426 Redirected to Shielding 113 | . . . 4 . . 109 Ignored by Resistances 34 | . . . . 25 9 . Regen/Repaired (Parts) 84 | . . 84 . . . . Core Remaining (%) 85 | 100 79 76 98 65 95 . Volleys Fired 307 | 8 31 84 33 72 21 58 Largest 3 | 2 2 2 2 2 2 3 Hottest 159 | 60 60 107 107 96 115 159 Shots Fired 629 | 16 62 167 63 140 40 141 Gun 190 | 16 41 . . 68 19 46 Cannon 424 | . 21 167 63 72 21 80 Launcher 15 | . . . . . . 15 Special . | . . . . . . . Kinetic 355 | 8 52 91 30 68 19 87 Thermal 241 | . . 76 33 72 21 39 Explosive 15 | . . . . . . 15 Electromagnetic 18 | 8 10 . . . . . Robot Hit Streak 27 | 9 6 7 6 24 27 8 Robot Miss Streak 5 | 2 4 5 5 5 2 5 Penetration Max 1 | . . . . . 1 1 Secondary Targets . | . . . . . . . Shots Hit Robots 343 | 12 34 79 33 88 23 74 Core Hits 199 | 4 15 40 13 44 13 70 Critical Kills 2 | 1 . . . . . 1 Critical Parts Destroyed 4 | . . . . 2 . 2 Critical Strikes 16 | 1 3 5 1 2 . 4 Meltdown 1 | . . . . . . 1 Destroy 4 | 1 . . . 1 . 2 Blast 10 | . 3 5 1 . . 1 Smash 1 | . . . . 1 . . Melee Attacks 8 | . . . . 3 . 5 Thermal 1 | . . . . . . 1 Impact 7 | . . . . 3 . 4 Slashing . | . . . . . . . Piercing . | . . . . . . . Sneak Attacks 5 | . . . . 1 . 4 Combat Hostiles . | . . . . . . . Follow-up Attacks . | . . . . . . . Damage Inflicted 10453 | 151 629 1736 707 2148 643 4439 Guns 2245 | 151 360 . . 753 240 741 Cannons 5763 | . 222 1736 707 1266 403 1429 Explosions 1931 | . 47 . . . . 1884 Melee 514 | . . . . 129 . 385 Ramming . | . . . . . . . Kinetic 4228 | 85 482 959 377 753 240 1332 Thermal 4598 | . 47 777 330 1266 403 1775 Explosive 947 | . . . . . . 947 Electromagnetic 166 | 66 100 . . . . . Impact 514 | . . . . 129 . 385 Slashing . | . . . . . . . Piercing . | . . . . . . . Highest Corruption 9 | . . . . 2 . 9 Average Corruption 5 | . . . . 1 . 6 Corruption Purged . | . . . . . . . Corruption Blocked . | . . . . . . . Effects 9 | . . . . 1 . 8 Message Errors 2 | . . . . . . 2 Matter Fused 2 | . . . . . . 2 Energy Discharges 1 | . . . . . . 1 Data Loss (minor) 2 | . . . . 1 . 1 Data Loss (major) 1 | . . . . . . 1 Weapon Failures 1 | . . . . . . 1 Overload Shots . | . . . . . . . Overflow Damage 574 | . 18 24 40 115 1 376 Projectiles 114 | . 18 24 40 11 1 20 Explosions 193 | . . . . . . 193 Melee 267 | . . . . 104 . 163 Knockbacks 19 | . 3 7 3 . . 6 Impact 1 | . . . . . . 1 Kinetic 18 | . 3 7 3 . . 5 Secondary . | . . . . . . . Self-Inflicted Damage 74 | . . . . . . 74 Shots 1 | . . . . . . 1 Rammed 1 | . . . . . . 1 Targets Rammed 1 | . . . . . . 1 Kicked . | . . . . . . . Crushed . | . . . . . . . Highest Temperature 446 | . 60 446 . 150 345 86 Average Temperature 79 | . 17 146 . 50 101 15 Received Heat Transfer 1670 | . 153 156 54 438 297 572 Effects 4 | . . 4 . . . . Interference 2 | . . 2 . . . . Damage (minor) 2 | . . 2 . . . . Siege Activations . | . . . . . . . Robots Corrupted 2 | . . . . . . 2 Combat Hostiles . | . . . . . . . Parts Fried 7 | . . . . 2 . 5 Impact Corruptions 6 | . . . . 2 . 4 Robots Melted 1 | . . . . . . 1 Combat Hostiles . | . . . . . . . Parts Melted 7 | . . . 1 3 . 3 Heat Transferred 6028 | . 100 1406 592 1813 481 1636 Parts Sabotaged . | . . . . . . . Parts Stolen . | . . . . . . . Parts Stripped . | . . . . . . . Power Chain Reactions 1 | . 1 . . . . . Alert | -11 -10 -9 -8 -7 -6 -5 ------- Run | Yrd Mat Mat Mat Fac Fac Fac Peak Influence 767 | 15 242 767 602 442 313 587 Initial 304 | . 9 102 304 273 216 79 Average 309 | 4 152 478 490 281 240 231 Maximum Alert Level 3 | . 1 3 2 2 1 2 Low Security (%) 28 | 100 55 5 . 16 12 68 Level 1 46 | . 44 34 24 79 87 7 Level 2 22 | . . 48 75 3 . 23 Level 3 2 | . . 11 . . . . Level 4 . | . . . . . . . Level 5 . | . . . . . . . High Security . | . . . . . . . Max Security . | . . . . . . . Squads Dispatched 20 | . 1 4 1 5 2 7 Investigation 4 | . . 1 . 2 . 1 Extermination 3 | . . . . 2 . 1 Reinforcement 11 | . 1 2 1 . 2 5 Assault 1 | . . 1 . . . . Garrison 1 | . . . . 1 . . Intercept . | . . . . . . . Searches Triggered . | . . . . . . . Construction Impeded 1 | . . . . . . 1 Haulers Reinforced 1 | . . . . . . 1 Active Scanning Responses . | . . . . . . . Cargo Convoy Interrupts 1 | . . . . . . 1 Stealth | -11 -10 -9 -8 -7 -6 -5 --------- Run | Yrd Mat Mat Mat Fac Fac Fac Distress Signals 9 | . 2 1 3 1 . 2 Communications Jammed . | . . . . . . . Distress Signals . | . . . . . . . Times Spotted 151 | . 11 40 10 31 14 45 Peak Tracking Total 11 | . 3 5 5 5 4 11 Tactical Retreats 8 | . 1 3 1 . . 3 Traps | -11 -10 -9 -8 -7 -6 -5 ------- Run | Yrd Mat Mat Mat Fac Fac Fac Traps Triggered 3 | . 2 . . 1 . . Indirectly . | . . . . . . . Trap Hack Attempts . | . . . . . . . Triggered . | . . . . . . . Disarmed . | . . . . . . . Reprogrammed . | . . . . . . . Reused . | . . . . . . . Traps Extracted . | . . . . . . . Installed . | . . . . . . . Triggered . | . . . . . . . Machines | -11 -10 -9 -8 -7 -6 -5 ---------- Run | Yrd Mat Mat Mat Fac Fac Fac Machines Disabled 14 | . 1 2 4 1 2 4 Max in Single Turn 4 | . 1 1 1 1 1 4 Garrison Access 1 | . . . . . 1 . Machines Repaired . | . . . . . . . Machines Dismantled . | . . . . . . . Machines Sabotaged . | . . . . . . . Overloaded Fab Kills . | . . . . . . . Hacking | -11 -10 -9 -8 -7 -6 -5 --------- Run | Yrd Mat Mat Mat Fac Fac Fac Machines Accessed 18 | . 1 6 2 4 1 4 Terminals 9 | . 1 3 1 1 . 3 Fabricators 3 | . . . . 2 . 1 Repair Stations 2 | . . 1 . 1 . . Recycling Units 1 | . . 1 . . . . Scanalyzers 2 | . . 1 1 . . . Garrison Access 1 | . . . . . 1 . Total Hacks 54 | . 3 18 15 6 1 11 Successful 38 | . 1 12 13 5 1 6 Failed 16 | . 2 6 2 1 . 5 Catastrophic 3 | . . 2 . . . 1 Database Lockouts . | . . . . . . . Manual 23 | . 3 10 3 . . 7 Terminals 26 | . 3 10 3 1 . 9 Fabricators 5 | . . . . 3 . 2 Repair Stations 4 | . . 2 . 2 . . Recycling Units 1 | . . 1 . . . . Scanalyzers 17 | . . 5 12 . . . Garrison Access 1 | . . . . . 1 . Terminal Hacks 4 | . . 1 . 1 . 2 Prototype ID Bank 1 | . . . . . . 1 Terminal Index 1 | . . . . . . 1 Locate Traps 2 | . . 1 . 1 . . Fabricator Hacks 4 | . . . . 3 . 1 Load Schematic 1 | . . . . 1 . . Build 3 | . . . . 2 . 1 Repair Station Hacks 3 | . . 2 . 1 . . Scan Component 2 | . . 1 . 1 . . Repair 1 | . . 1 . . . . Recycling Unit Hacks 1 | . . 1 . . . . Report Inventory 1 | . . 1 . . . . Scanalyzer 16 | . . 4 12 . . . Insert Component 7 | . . 2 5 . . . Analyze 9 | . . 2 7 . . . Garrison Access Hacks 1 | . . . . . 1 . Seal Access 1 | . . . . . 1 . Unauthorized Hacks 9 | . 1 4 1 . . 3 Terminals 8 | . 1 3 1 . . 3 Botnet 8 | . 1 3 1 . . 3 Fabricators . | . . . . . . . Repair Stations . | . . . . . . . Recycling Units . | . . . . . . . Scanalyzers 1 | . . 1 . . . . Extract 1 | . . 1 . . . . Garrison Access . | . . . . . . . Data Cores Recovered 1 | . . . . . . 1 Used . | . . . . . . . Hacking Detections 15 | . 1 4 2 4 . 4 Full Trace Events 1 | . . . . 1 . . Feedback Events . | . . . . . . . Feedback Blocked . | . . . . . . . Robot Schematics Acquired . | . . . . . . . Robots Built 5 | . . . . 3 . 2 Authchips . | . . . . . . . Time 107 | . . . . 67 . 40 Total Robot Build Rating 14 | . . . . 12 . 2 Part Schematics Acquired 12 | . . 7 5 . . . Parts Built 2 | . . . . 2 . . Authchips . | . . . . . . . Time 62 | . . . . 62 . . Total Part Build Rating 4 | . . . . 4 . . Parts Repaired 1 | . . 1 . . . . Time 26 | . . 26 . . . . Parts Recycled . | . . . . . . . Recycled Matter . | . . . . . . . Retrieved Matter . | . . . . . . . Retrieved Components . | . . . . . . . Parts Scanalyzed 7 | . . 2 5 . . . Part Schematics Acquired 7 | . . 2 5 . . . Parts Damaged . | . . . . . . . Bothacking | -11 -10 -9 -8 -7 -6 -5 ------------ Run | Yrd Mat Mat Mat Fac Fac Fac Used RIF Installer . | . . . . . . . Robots Hacked . | . . . . . . . Non-combat . | . . . . . . . Combat . | . . . . . . . Robot Hacks Applied . | . . . . . . . Relay Couplers Released . | . . . . . . . Fabnet Peak Effective % . | . . . . . . . Robots Rewired . | . . . . . . . Allies Hacked . | . . . . . . . Hacks Repelled . | . . . . . . . Allies | -11 -10 -9 -8 -7 -6 -5 -------- Run | Yrd Mat Mat Mat Fac Fac Fac Total Allies 5 | . . . . 3 . 2 Largest Group 3 | . . . . 3 . 2 Highest-Rated Group 90 | . . . . 90 . 16 Highest-Rated Ally 30 | . . . . 30 . 8 Total Orders 3 | . . . . . . 3 PICKUP 3 | . . . . . . 3 Ally Attacks 12 | . . . . 12 . . Total Damage 305 | . . . . 305 . . Kills 3 | . . . . 3 . . Allies Corrupted . | . . . . . . . Allies Melted . | . . . . . . . Intel | -11 -10 -9 -8 -7 -6 -5 ------- Run | Yrd Mat Mat Mat Fac Fac Fac Robot Analysis Total . | . . . . . . . Derelict Logs Recovered . | . . . . . . . Drone Launches . | . . . . . . . Drone Recoveries . | . . . . . . . Exploration | -11 -10 -9 -8 -7 -6 -5 ------------- Run | Yrd Mat Mat Mat Fac Fac Fac Turns Passed 3828 | 84 315 880 269 1009 456 815 Spaces Moved 2266 | 53 164 546 145 667 270 421 Core 116 | 16 . . . . . 100 Treads . | . . . . . . . Legs 147 | . . . . . 131 16 Wheels 2003 | 37 164 546 145 667 139 305 Hover . | . . . . . . . Flight . | . . . . . . . Fastest Speed 50 | 50 90 90 95 85 95 50 Average Speed 100 | 77 104 96 101 92 115 110 Slowest Speed 190 | 90 110 110 105 155 190 150 Overloaded Moves . | . . . . . . . Propulsion Burnouts . | . . . . . . . Robots Hopped . | . . . . . . . Cave-ins Triggered . | . . . . . . . Exploration Rate (%) 20 | 3 29 49 19 19 11 12 Regions Visited 6 Branch Regions . Pre-discovered Areas . | . . . . . . . Known Exits Taken 1 | . . . . . 1 . Unknown Exits Taken 5 | 1 1 1 1 1 . . Scrap Searched . | . . . . . . . Spaces Dug 3 | . . . . . 2 1 Terrain Destroyed 130 | . 1 2 2 7 7 111 Melee . | . . . . . . . Projectile 34 | . . 2 2 7 7 16 AOE 96 | . 1 . . . . 95 Terrain Rammed . | . . . . . . . Walls Destroyed . | . . . . . . . Machines Disabled . | . . . . . . . Actions | -11 -10 -9 -8 -7 -6 -5 --------- Run | Yrd Mat Mat Mat Fac Fac Fac Total 3215 | 78 244 733 206 927 378 649 Wait 390 | . 11 69 5 143 42 120 Move 2260 | 52 163 545 144 666 269 421 Hop . | . . . . . . . Pick Up 67 | 11 17 9 6 10 8 6 Fast Attach 50 | 2 6 5 3 9 12 13 Attach 35 | 5 3 7 2 8 2 8 Detach 2 | . . . . . 2 . Swap 27 | . 5 5 4 5 3 5 Drop 68 | . 8 9 9 11 19 12 Fire 307 | 8 31 84 33 72 21 58 Melee 8 | . . . . 3 . 5 Ram 1 | . . . . . . 1 Kick . | . . . . . . . Crush . | . . . . . . . Escape Stasis . | . . . . . . . Rewire . | . . . . . . . Trap . | . . . . . . . Miscellaneous . | . . . . . . . Route ------- -11/Scrapyard -10/Materials -9/Materials (discovered 2 exits: *Mat / [*Min]) -8/Materials -7/Factory -6/Factory -5/Factory (discovered 1 exit: [*Fac]) History --------- Turn | Location | Event 9 | -11/Scrapyard | Discovered new exit (range 16) 85 | -11/Scrapyard | Entered Materials 270 | -10/Materials | Discovered new exit (range 16) 303 | -10/Materials | Build established: Mutant 400 | -10/Materials | Entered another Materials area 400 | -9/Materials | Evolved 2 slots: Propulsion x1, Utility x1 689 | -9/Materials | Repaired Lgt. Armor Plating 795 | -9/Materials | Discovered new exit (range 6) 1200 | -9/Materials | First assault squad dispatched 1206 | -9/Materials | Discovered new exit (range 10) 1280 | -9/Materials | Entered another Materials area 1280 | -8/Materials | Evolved 2 slots: Utility x2 1500 | -8/Materials | Discovered new exit (range 10) 1511 | -8/Materials | Met 7R-MNS 1549 | -8/Materials | Entered Factory 1549 | -7/Factory | Evolved 2 slots: Propulsion x1, Utility x1 1550 | -7/Factory | Caught up to 7R-MNS 1590 | -7/Factory | Build established: Scavenger-Mutant 2001 | -7/Factory | Garrison activated, responded to threat 2090 | -7/Factory | Fabricated L-41 Fighter (x3) 2321 | -7/Factory | Fabricated Arm. Wheel (x2) 2329 | -7/Factory | Lost 5 parts (2p3n) 2456 | -7/Factory | Lost 4 parts (1n2u1w) 2533 | -7/Factory | Discovered new exit (range 5) 2558 | -7/Factory | Entered another Factory area 2558 | -6/Factory | Evolved 2 slots: Power x1, Utility x1 2559 | -6/Factory | Caught up to 7R-MNS 2810 | -6/Factory | Build established: Scavenger-Skirmisher 2835 | -6/Factory | Spotted B-75 Beast 2998 | -6/Factory | Discovered new exit (range 16) 3013 | -6/Factory | Identified exit to Factory 3014 | -6/Factory | Entered another Factory area 3014 | -5/Factory | Evolved 2 slots: Utility x1, Weapon x1 3015 | -5/Factory | Caught up to 7R-MNS 3217 | -5/Factory | Fabricated R-06 Scavenger? 3579 | -5/Factory | Cargo convoy interrupted 3644 | -5/Factory | Core integrity fell below 50% 3672 | -5/Factory | Core integrity fell below 20% 3699 | -5/Factory | Lost 22 parts (2p6n6u8w) 3701 | -5/Factory | Destroyed 7 combat bots 3721 | -5/Factory | Discovered new exit (range 9) 3829 | -5/Factory | Destroyed by H-71 Marshal with Heavy Mass Driver Last Messages --------------- 03789_ K-01 Serf knocked back. 03790_ K-01 Serf system terminally corrupted. 03790_ Wheel fried. 03792_ Acquired 17 matter. 03794_ Acquired Terrain Scanner. 03795_ Acquired 19 matter. 03796_ Wheel destroyed. 03803_ >> Machine Analyzer network decryption results: 03803_ Terminal x2 03806_ System corrupted: Matter fused (-10). 03810_ >> Machine Analyzer network decryption results: 03810_ Terminal x1 03818_ Connecting with Terminal... >>Trojan(Botnet) Trojan loaded successfully. Testing... Terminal linked with 2 systems. Awaiting botnet instructions. Map ----- +----------------------------------------------------+ | ?????????????????????????????????????????????????? | | ####?????########????????????????????????????????? | | ?????# #????????????????????????????????? | | " "?"?"?# #????????????????????????????????? | | " "?"?"?# #????????????????????????????????? | | " " " "?# #????????????????????????????????? | | " " " "?# #????????????????????????????????? | | " " " " # #????????????????????????????????? | | " " " " # #????????????????????????????????? | | " " " " # #????????????????????????????????? | | " " " " ###??????????????????????????????? | | " " " " ##??????????????????????????????? | | # #?????#######??????????????????? | | #?????? #??????????????????? | | ######## #?????? #??????????????????? | | #######/### ##?????? ??????????H???????? | | #### # # # #?????? ???????????????????? | | * ####### # ##?????? ???????????????????? | | + # #???????# #???????????????????? | | ####### ###???????# #???????????????????? | | #!## #????????# +???????????????????? | | # # # ##?######?# #??"""??????????????? | | ##### # ###??# ## #??"""??????????????? | | ######### ###### #??"""??????????????? | | + "% A